[Event "Titled Tuesday Blitz February 07 Early 2023"]
[White "Danielyan, Vahe"]
[Black "Smietanska, Wiktoria"]
[WhiteFideId "13304828"]
[BlackFideId "21869359"]
[WhiteElo "2346"]
[BlackElo "1936"]
[Result "1-0"]
[Round "02"]
[TimeControl "180+2"]
[Date "2023.02.07"]
[WhiteClock "0:01:12"]
[BlackClock "0:00:04"]

1. d4 {[%clk 0:03:00]}  Nf6 {[%clk 0:02:59]} 2. c4 {[%clk 0:02:59]}  g6 {[%clk 0:02:59]} 3. Nc3 {[%clk 0:02:57]}  Bg7 {[%clk 0:02:59]} 4. e4 {[%clk 0:02:57]}  d6 {[%clk 0:02:59]} 5. Be2 {[%clk 0:02:56]}  O-O {[%clk 0:02:58]} 6. Nf3 {[%clk 0:02:57]}  e5 {[%clk 0:02:57]} 7. O-O {[%clk 0:02:56]}  Nc6 {[%clk 0:02:58]} 8. d5 {[%clk 0:02:55]}  Ne7 {[%clk 0:02:58]} 9. Ne1 {[%clk 0:02:52]}  Nd7 {[%clk 0:02:58]} 10. Be3 {[%clk 0:02:51]}  f5 {[%clk 0:02:58]} 11. f3 {[%clk 0:02:52]}  Nf6 {[%clk 0:02:57]} 12. c5 {[%clk 0:02:37]}  f4 {[%clk 0:02:54]} 13. Bf2 {[%clk 0:02:35]}  g5 {[%clk 0:02:50]} 14. Nd3 {[%clk 0:02:31]}  h5 {[%clk 0:02:45]} 15. Rc1 {[%clk 0:02:14]}  Ng6 {[%clk 0:02:29]} 16. cxd6 {[%clk 0:02:14]}  cxd6 {[%clk 0:02:23]} 17. Nb5 {[%clk 0:02:14]}  b6 {[%clk 0:01:34]} 18. Rxc8 {[%clk 0:02:01]}  Qxc8 {[%clk 0:01:08]} 19. Nxd6 {[%clk 0:01:59]}  Qd7 {[%clk 0:01:05]} 20. Nf5 {[%clk 0:01:55]}  Bh8 {[%clk 0:00:35]} 21. Qb3 {[%clk 0:01:43]}  Nxd5 {[%clk 0:00:25]} 22. Nb4 {[%clk 0:01:23]}  Rad8 {[%clk 0:00:05]} 23. Nxd5 {[%clk 0:01:21]}  Qxd5 {[%clk 0:00:05]} 24. exd5 {[%clk 0:01:19]}  Rxf5 {[%clk 0:00:04]} 25. Rc1 {[%clk 0:01:12]} 1-0


[Site "https://www.chess.com"]

[Event "Titled Tuesday Blitz February 07 Early 2023"]
[White "Zampronha, Wladimir Camilo"]
[Black "Toczek, Grzegorz"]
[WhiteFideId "2103087"]
[BlackFideId "1106457"]
[WhiteElo "2176"]
[BlackElo "2260"]
[Result "1-0"]
[Round "02"]
[TimeControl "180+2"]
[Date "2023.02.07"]
[WhiteClock "0:01:36"]
[BlackClock "0:01:08"]

1. e4 {[%clk 0:02:55]}  c6 {[%clk 0:02:59]} 2. d4 {[%clk 0:02:54]}  d5 {[%clk 0:03:00]} 3. e5 {[%clk 0:02:55]}  c5 {[%clk 0:03:00]} 4. Nf3 {[%clk 0:02:55]}  Nc6 {[%clk 0:02:59]} 5. c4 {[%clk 0:02:55]}  cxd4 {[%clk 0:02:55]} 6. Nxd4 {[%clk 0:02:54]}  Nxd4 {[%clk 0:02:21]} 7. Qxd4 {[%clk 0:02:53]}  e6 {[%clk 0:02:03]} 8. Nc3 {[%clk 0:02:47]}  dxc4 {[%clk 0:01:53]} 9. Qxd8+ {[%clk 0:02:48]}  Kxd8 {[%clk 0:01:53]} 10. Bxc4 {[%clk 0:02:49]}  a6 {[%clk 0:01:53]} 11. O-O {[%clk 0:02:47]}  Kc7 {[%clk 0:01:48]} 12. Be3 {[%clk 0:02:44]}  Bd7 {[%clk 0:01:47]} 13. Rac1 {[%clk 0:02:43]}  Bc6 {[%clk 0:01:47]} 14. Bd3 {[%clk 0:02:28]}  Ne7 {[%clk 0:01:45]} 15. Be4 {[%clk 0:02:29]}  Rc8 {[%clk 0:01:42]} 16. Bxc6 {[%clk 0:02:27]}  Nxc6 {[%clk 0:01:42]} 17. Ne4 {[%clk 0:02:27]}  Be7 {[%clk 0:01:41]} 18. f4 {[%clk 0:02:22]}  g6 {[%clk 0:01:38]} 19. Bc5 {[%clk 0:02:17]}  Bxc5+ {[%clk 0:01:35]} 20. Rxc5 {[%clk 0:02:18]}  Rhd8 {[%clk 0:01:34]} 21. Nd6 {[%clk 0:02:13]}  Rxd6 {[%clk 0:01:34]} 22. exd6+ {[%clk 0:02:14]}  Kxd6 {[%clk 0:01:35]} 23. Rc2 {[%clk 0:02:12]}  Ke7 {[%clk 0:01:35]} 24. Rd1 {[%clk 0:02:11]}  h5 {[%clk 0:01:32]} 25. g3 {[%clk 0:02:10]}  Rh8 {[%clk 0:01:31]} 26. Kg2 {[%clk 0:02:07]}  Rb8 {[%clk 0:01:21]} 27. a3 {[%clk 0:02:05]}  Kf6 {[%clk 0:01:21]} 28. b4 {[%clk 0:02:04]}  Ne7 {[%clk 0:01:15]} 29. Rdc1 {[%clk 0:01:48]}  Rd8 {[%clk 0:01:14]} 30. Rc7 {[%clk 0:01:41]}  Rd3 {[%clk 0:01:08]} 31. Rxb7 {[%clk 0:01:37]}  Rxa3 {[%clk 0:01:08]} 32. Rcc7 {[%clk 0:01:36]} 1-0


[Site "https://www.chess.com"]

[Event "Titled Tuesday Blitz February 07 Early 2023"]
[White "Mortazavi, Ali"]
[Black "Zaksaite, Salomeja"]
[WhiteFideId "401323"]
[BlackFideId "12801496"]
[WhiteElo "2333"]
[BlackElo "2283"]
[Result "1-0"]
[Round "02"]
[TimeControl "180+2"]
[Date "2023.02.07"]
[WhiteClock "0:00:57"]
[BlackClock "0:00:01"]

1. e4 {[%clk 0:03:00]}  c5 {[%clk 0:02:50]} 2. Nc3 {[%clk 0:02:57]}  Nc6 {[%clk 0:02:49]} 3. f4 {[%clk 0:02:56]}  g6 {[%clk 0:02:47]} 4. Nf3 {[%clk 0:02:57]}  Bg7 {[%clk 0:02:47]} 5. a4 {[%clk 0:02:55]}  a6 {[%clk 0:02:41]} 6. Bc4 {[%clk 0:02:53]}  e6 {[%clk 0:02:41]} 7. e5 {[%clk 0:02:45]}  Nge7 {[%clk 0:02:40]} 8. d3 {[%clk 0:02:41]}  d5 {[%clk 0:02:39]} 9. exd6 {[%clk 0:02:40]}  Qxd6 {[%clk 0:02:39]} 10. O-O {[%clk 0:02:40]}  Nd4 {[%clk 0:02:36]} 11. Ne4 {[%clk 0:02:31]}  Qc7 {[%clk 0:02:34]} 12. c3 {[%clk 0:02:28]}  Nxf3+ {[%clk 0:02:31]} 13. Qxf3 {[%clk 0:02:25]}  O-O {[%clk 0:02:30]} 14. a5 {[%clk 0:02:21]}  Bd7 {[%clk 0:02:27]} 15. Qg3 {[%clk 0:02:15]}  Nf5 {[%clk 0:02:20]} 16. Qf2 {[%clk 0:02:13]}  Rac8 {[%clk 0:02:18]} 17. Bd2 {[%clk 0:02:10]}  Bb5 {[%clk 0:02:15]} 18. h3 {[%clk 0:01:49]}  Rfd8 {[%clk 0:02:08]} 19. Rfd1 {[%clk 0:01:44]}  Rxd3 {[%clk 0:02:00]} 20. Bxd3 {[%clk 0:01:43]}  Bxd3 {[%clk 0:02:01]} 21. Qf3 {[%clk 0:01:40]}  c4 {[%clk 0:02:01]} 22. Be1 {[%clk 0:01:39]}  b6 {[%clk 0:01:47]} 23. Bf2 {[%clk 0:01:29]}  bxa5 {[%clk 0:01:46]} 24. Nc5 {[%clk 0:01:27]}  Qb8 {[%clk 0:00:53]} 25. Rd2 {[%clk 0:01:18]}  Rd8 {[%clk 0:00:31]} 26. Rad1 {[%clk 0:01:14]}  Qb5 {[%clk 0:00:28]} 27. Nxd3 {[%clk 0:01:11]}  cxd3 {[%clk 0:00:27]} 28. Rxd3 {[%clk 0:01:11]}  Rxd3 {[%clk 0:00:12]} 29. Qxd3 {[%clk 0:01:11]}  h5 {[%clk 0:00:09]} 30. Qxb5 {[%clk 0:01:10]}  axb5 {[%clk 0:00:10]} 31. Rd8+ {[%clk 0:01:09]}  Kh7 {[%clk 0:00:09]} 32. Ra8 {[%clk 0:01:01]}  b4 {[%clk 0:00:09]} 33. cxb4 {[%clk 0:01:01]}  axb4 {[%clk 0:00:09]} 34. b3 {[%clk 0:01:01]}  Bc3 {[%clk 0:00:08]} 35. Ra7 {[%clk 0:01:00]}  Kg7 {[%clk 0:00:07]} 36. Kf1 {[%clk 0:01:00]}  Bd2 {[%clk 0:00:06]} 37. g3 {[%clk 0:00:57]}  h4 {[%clk 0:00:06]} 38. g4 {[%clk 0:00:57]}  Ne3+ {[%clk 0:00:04]} 39. Ke2 {[%clk 0:00:57]}  Nxg4 {[%clk 0:00:01]} 40. hxg4 {[%clk 0:00:56]}  h3 {[%clk 0:00:01]} 41. Bd4+ {[%clk 0:00:57]} 1-0


[Site "https://www.chess.com"]

[Event "Titled Tuesday Blitz February 07 Early 2023"]
[White "Mamedov, Edgar"]
[Black "Alhadad, Mahmoud"]
[WhiteFideId "13739980"]
[BlackFideId "11501863"]
[WhiteElo "2193"]
[BlackElo "1840"]
[Result "0-1"]
[Round "02"]
[TimeControl "180+2"]
[Date "2023.02.07"]
[WhiteClock "0:01:29"]
[BlackClock "0:01:15"]

1. d4 {[%clk 0:03:00]}  d5 {[%clk 0:02:59]} 2. Nf3 {[%clk 0:03:00]}  Nc6 {[%clk 0:03:00]} 3. g3 {[%clk 0:02:59]}  Bg4 {[%clk 0:03:00]} 4. Bg2 {[%clk 0:02:59]}  e6 {[%clk 0:02:59]} 5. O-O {[%clk 0:02:58]}  Nf6 {[%clk 0:02:59]} 6. c4 {[%clk 0:02:56]}  Be7 {[%clk 0:02:56]} 7. b3 {[%clk 0:02:55]}  O-O {[%clk 0:02:56]} 8. Bb2 {[%clk 0:02:55]}  Re8 {[%clk 0:02:56]} 9. Nbd2 {[%clk 0:02:54]}  Bf8 {[%clk 0:02:56]} 10. h3 {[%clk 0:02:50]}  Bxf3 {[%clk 0:02:56]} 11. Nxf3 {[%clk 0:02:49]}  Ne7 {[%clk 0:02:56]} 12. Ne5 {[%clk 0:02:49]}  Ng6 {[%clk 0:02:54]} 13. Rc1 {[%clk 0:02:47]}  c6 {[%clk 0:02:54]} 14. cxd5 {[%clk 0:02:46]}  exd5 {[%clk 0:02:54]} 15. e3 {[%clk 0:02:45]}  Nd7 {[%clk 0:02:54]} 16. Nxg6 {[%clk 0:02:43]}  hxg6 {[%clk 0:02:54]} 17. a3 {[%clk 0:02:43]}  Nf6 {[%clk 0:02:35]} 18. b4 {[%clk 0:02:41]}  a6 {[%clk 0:02:35]} 19. Qb3 {[%clk 0:02:32]}  Qb6 {[%clk 0:02:32]} 20. Bc3 {[%clk 0:02:02]}  Ne4 {[%clk 0:02:32]} 21. Rb1 {[%clk 0:01:59]}  Rac8 {[%clk 0:02:07]} 22. a4 {[%clk 0:01:54]}  Nxc3 {[%clk 0:01:59]} 23. Qxc3 {[%clk 0:01:55]}  Qd8 {[%clk 0:01:43]} 24. b5 {[%clk 0:01:44]}  cxb5 {[%clk 0:01:40]} 25. axb5 {[%clk 0:01:45]}  Rxc3 {[%clk 0:01:39]} 26. bxa6 {[%clk 0:01:43]}  bxa6 {[%clk 0:01:37]} 27. Ra1 {[%clk 0:01:41]}  Qd6 {[%clk 0:01:34]} 28. Ra5 {[%clk 0:01:39]}  Rec8 {[%clk 0:01:24]} 29. Rxd5 {[%clk 0:01:37]}  Qf6 {[%clk 0:01:24]} 30. Rd7 {[%clk 0:01:32]}  R8c7 {[%clk 0:01:19]} 31. Rd5 {[%clk 0:01:29]}  Rc1 {[%clk 0:01:15]} 0-1


[Site "https://www.chess.com"]

[Event "Titled Tuesday Blitz February 07 Early 2023"]
[White "Vaglio Munoz, Jaime"]
[Black "Herman, Daniel"]
[WhiteFideId "6500145"]
[BlackFideId "30935008"]
[WhiteElo "2174"]
[BlackElo "1956"]
[Result "1-0"]
[Round "02"]
[TimeControl "180+2"]
[Date "2023.02.07"]
[WhiteClock "0:00:38"]
[BlackClock "0:00:06"]

1. d4 {[%clk 0:03:00]}  g6 {[%clk 0:03:00]} 2. e4 {[%clk 0:02:59]}  Bg7 {[%clk 0:03:00]} 3. f3 {[%clk 0:02:59]}  d6 {[%clk 0:02:59]} 4. Bg5 {[%clk 0:02:58]}  c5 {[%clk 0:02:58]} 5. c3 {[%clk 0:02:56]}  cxd4 {[%clk 0:02:58]} 6. cxd4 {[%clk 0:02:56]}  Qb6 {[%clk 0:02:58]} 7. Ne2 {[%clk 0:02:52]}  Qxb2 {[%clk 0:02:52]} 8. Nbc3 {[%clk 0:02:52]}  Nf6 {[%clk 0:02:23]} 9. Rb1 {[%clk 0:02:50]}  Qa3 {[%clk 0:02:22]} 10. e5 {[%clk 0:02:34]}  dxe5 {[%clk 0:02:12]} 11. dxe5 {[%clk 0:02:35]}  Nfd7 {[%clk 0:02:05]} 12. Nb5 {[%clk 0:02:33]}  Qa5+ {[%clk 0:02:04]} 13. Bd2 {[%clk 0:02:32]}  Qd8 {[%clk 0:02:00]} 14. f4 {[%clk 0:02:13]}  O-O {[%clk 0:01:55]} 15. Ng3 {[%clk 0:02:13]}  a6 {[%clk 0:01:46]} 16. Nc3 {[%clk 0:02:10]}  Nc5 {[%clk 0:01:44]} 17. Bc4 {[%clk 0:02:04]}  Nd3+ {[%clk 0:01:43]} 18. Ke2 {[%clk 0:02:04]}  Bg4+ {[%clk 0:01:38]} 19. Ke3 {[%clk 0:02:03]}  Bxd1 {[%clk 0:01:38]} 20. Rbxd1 {[%clk 0:02:03]}  Nc5 {[%clk 0:01:36]} 21. Bc1 {[%clk 0:01:59]}  Qb6 {[%clk 0:01:24]} 22. Nd5 {[%clk 0:01:59]}  Qa7 {[%clk 0:01:17]} 23. Nxe7+ {[%clk 0:01:56]}  Kh8 {[%clk 0:01:18]} 24. Kf3 {[%clk 0:01:52]}  Nc6 {[%clk 0:01:17]} 25. Nd5 {[%clk 0:01:44]}  Ne6 {[%clk 0:01:17]} 26. Be3 {[%clk 0:01:43]}  Ncd4+ {[%clk 0:01:16]} 27. Kf2 {[%clk 0:01:39]}  Rac8 {[%clk 0:01:12]} 28. Bb3 {[%clk 0:01:36]}  Rfd8 {[%clk 0:01:00]} 29. Ne2 {[%clk 0:01:36]}  Qc5 {[%clk 0:00:43]} 30. Nxd4 {[%clk 0:01:32]}  Nxd4 {[%clk 0:00:37]} 31. Bxd4 {[%clk 0:01:31]}  Qa3 {[%clk 0:00:27]} 32. Ba1 {[%clk 0:01:28]}  Bf8 {[%clk 0:00:27]} 33. e6+ {[%clk 0:01:27]}  Bg7 {[%clk 0:00:24]} 34. e7 {[%clk 0:01:26]}  Re8 {[%clk 0:00:22]} 35. Bxg7+ {[%clk 0:01:19]}  Kxg7 {[%clk 0:00:23]} 36. Rhe1 {[%clk 0:01:18]}  Qc5+ {[%clk 0:00:22]} 37. Kf1 {[%clk 0:01:13]}  b5 {[%clk 0:00:22]} 38. Re2 {[%clk 0:01:02]}  a5 {[%clk 0:00:21]} 39. Rc2 {[%clk 0:01:01]}  Qd6 {[%clk 0:00:19]} 40. Rxc8 {[%clk 0:01:00]}  Rxc8 {[%clk 0:00:20]} 41. Re1 {[%clk 0:00:59]}  Re8 {[%clk 0:00:20]} 42. a4 {[%clk 0:00:58]}  bxa4 {[%clk 0:00:19]} 43. Ba2 {[%clk 0:00:57]}  a3 {[%clk 0:00:19]} 44. Re2 {[%clk 0:00:57]}  a4 {[%clk 0:00:19]} 45. g3 {[%clk 0:00:56]}  h5 {[%clk 0:00:18]} 46. Kf2 {[%clk 0:00:56]}  Qc5+ {[%clk 0:00:18]} 47. Kf3 {[%clk 0:00:55]}  Qd4 {[%clk 0:00:18]} 48. g4 {[%clk 0:00:54]}  hxg4+ {[%clk 0:00:18]} 49. Kxg4 {[%clk 0:00:54]}  Qg1+ {[%clk 0:00:18]} 50. Kf3 {[%clk 0:00:53]}  Qh1+ {[%clk 0:00:18]} 51. Kg3 {[%clk 0:00:53]}  Qc1 {[%clk 0:00:17]} 52. Kf2 {[%clk 0:00:51]}  Qc5+ {[%clk 0:00:14]} 53. Kf3 {[%clk 0:00:51]}  f6 {[%clk 0:00:14]} 54. f5 {[%clk 0:00:51]}  gxf5 {[%clk 0:00:13]} 55. Rg2+ {[%clk 0:00:51]}  Kh7 {[%clk 0:00:12]} 56. Re2 {[%clk 0:00:48]}  Qd4 {[%clk 0:00:11]} 57. Nf4 {[%clk 0:00:47]}  Qc3+ {[%clk 0:00:08]} 58. Re3 {[%clk 0:00:46]}  Qd4 {[%clk 0:00:08]} 59. Re2 {[%clk 0:00:46]}  Qb2 {[%clk 0:00:05]} 60. Bf7 {[%clk 0:00:44]}  Rxe7 {[%clk 0:00:05]} 61. Rxe7 {[%clk 0:00:43]}  a2 {[%clk 0:00:06]} 62. Bxa2+ {[%clk 0:00:42]}  Kh6 {[%clk 0:00:07]} 63. Bg8 {[%clk 0:00:42]}  Qb3+ {[%clk 0:00:05]} 64. Bxb3 {[%clk 0:00:39]}  axb3 {[%clk 0:00:06]} 65. Rb7 {[%clk 0:00:38]} 1-0


[Site "https://www.chess.com"]

[Event "Titled Tuesday Blitz February 07 Early 2023"]
[White "Khamdamova, Afruza"]
[Black "Ciuffoletti, Paolo"]
[WhiteFideId "14210444"]
[BlackFideId "807630"]
[WhiteElo "2162"]
[BlackElo "2106"]
[Result "0-1"]
[Round "02"]
[TimeControl "180+2"]
[Date "2023.02.07"]
[WhiteClock "0:00:12"]
[BlackClock "0:00:30"]

1. e4 {[%clk 0:02:59]}  c5 {[%clk 0:02:58]} 2. Nf3 {[%clk 0:02:59]}  Nc6 {[%clk 0:02:57]} 3. d4 {[%clk 0:02:59]}  cxd4 {[%clk 0:02:57]} 4. Nxd4 {[%clk 0:02:59]}  Nf6 {[%clk 0:02:57]} 5. Nc3 {[%clk 0:02:59]}  e5 {[%clk 0:02:57]} 6. Ndb5 {[%clk 0:03:00]}  d6 {[%clk 0:02:58]} 7. Bg5 {[%clk 0:02:58]}  a6 {[%clk 0:02:58]} 8. Na3 {[%clk 0:02:59]}  b5 {[%clk 0:02:58]} 9. Nd5 {[%clk 0:02:59]}  Be7 {[%clk 0:02:58]} 10. Bxf6 {[%clk 0:02:59]}  Bxf6 {[%clk 0:02:59]} 11. c3 {[%clk 0:03:00]}  O-O {[%clk 0:02:58]} 12. Nc2 {[%clk 0:03:00]}  Rb8 {[%clk 0:02:58]} 13. Be2 {[%clk 0:02:59]}  a5 {[%clk 0:02:56]} 14. Nxf6+ {[%clk 0:02:52]}  Qxf6 {[%clk 0:02:55]} 15. Ne3 {[%clk 0:02:52]}  Ne7 {[%clk 0:02:47]} 16. O-O {[%clk 0:02:52]}  Bb7 {[%clk 0:02:40]} 17. Qd3 {[%clk 0:02:34]}  Rfd8 {[%clk 0:02:28]} 18. Bf3 {[%clk 0:02:08]}  Qg6 {[%clk 0:01:40]} 19. Rad1 {[%clk 0:01:58]}  d5 {[%clk 0:01:26]} 20. Nxd5 {[%clk 0:01:08]}  Nxd5 {[%clk 0:01:16]} 21. exd5 {[%clk 0:01:08]}  f5 {[%clk 0:01:14]} 22. Qxb5 {[%clk 0:00:46]}  Ba6 {[%clk 0:01:07]} 23. Qxa5 {[%clk 0:00:41]}  Bxf1 {[%clk 0:01:05]} 24. Kxf1 {[%clk 0:00:40]}  e4 {[%clk 0:01:05]} 25. Be2 {[%clk 0:00:40]}  Qd6 {[%clk 0:00:59]} 26. b4 {[%clk 0:00:32]}  Qxh2 {[%clk 0:00:57]} 27. f3 {[%clk 0:00:16]}  e3 {[%clk 0:00:53]} 28. Bc4 {[%clk 0:00:15]}  Qh1+ {[%clk 0:00:42]} 29. Ke2 {[%clk 0:00:15]}  Qxg2+ {[%clk 0:00:42]} 30. Kd3 {[%clk 0:00:14]}  Qxf3 {[%clk 0:00:38]} 31. Re1 {[%clk 0:00:12]}  Qe4+ {[%clk 0:00:30]} 32. Ke2 {[%clk 0:00:12]}  Qxc4+ {[%clk 0:00:30]} 0-1


[Site "https://www.chess.com"]

[Event "Titled Tuesday Blitz February 07 Early 2023"]
[White "Onslow, Alfie"]
[Black "Ramirez Allo, Eduardo"]
[WhiteFideId "436976"]
[BlackFideId "2224178"]
[WhiteElo "2157"]
[BlackElo "2274"]
[Result "1-0"]
[Round "02"]
[TimeControl "180+2"]
[Date "2023.02.07"]
[WhiteClock "0:00:10"]
[BlackClock "0:00:03"]

1. e4 {[%clk 0:03:00]}  c5 {[%clk 0:03:00]} 2. Nc3 {[%clk 0:02:59]}  d6 {[%clk 0:02:59]} 3. d4 {[%clk 0:02:56]}  cxd4 {[%clk 0:02:59]} 4. Qxd4 {[%clk 0:02:57]}  Nf6 {[%clk 0:02:59]} 5. b3 {[%clk 0:02:55]}  Nc6 {[%clk 0:02:58]} 6. Qd2 {[%clk 0:02:54]}  e6 {[%clk 0:02:53]} 7. Bb2 {[%clk 0:02:54]}  Be7 {[%clk 0:02:53]} 8. O-O-O {[%clk 0:02:54]}  O-O {[%clk 0:02:54]} 9. f3 {[%clk 0:02:54]}  a6 {[%clk 0:02:54]} 10. g4 {[%clk 0:02:54]}  b5 {[%clk 0:02:54]} 11. Kb1 {[%clk 0:02:50]}  b4 {[%clk 0:02:52]} 12. Nce2 {[%clk 0:02:45]}  a5 {[%clk 0:02:50]} 13. h4 {[%clk 0:02:35]}  a4 {[%clk 0:02:39]} 14. h5 {[%clk 0:02:32]}  axb3 {[%clk 0:02:38]} 15. cxb3 {[%clk 0:02:29]}  Nd7 {[%clk 0:02:23]} 16. h6 {[%clk 0:02:18]}  g6 {[%clk 0:02:22]} 17. Nd4 {[%clk 0:02:17]}  Nxd4 {[%clk 0:02:08]} 18. Qxd4 {[%clk 0:02:15]}  e5 {[%clk 0:02:01]} 19. Qxb4 {[%clk 0:02:08]}  Qc7 {[%clk 0:01:48]} 20. Qd2 {[%clk 0:01:59]}  Ba6 {[%clk 0:01:43]} 21. Ne2 {[%clk 0:01:55]}  Rfc8 {[%clk 0:01:33]} 22. Nc3 {[%clk 0:01:52]}  Nb6 {[%clk 0:01:21]} 23. f4 {[%clk 0:01:41]}  Qa7 {[%clk 0:01:03]} 24. fxe5 {[%clk 0:01:08]}  dxe5 {[%clk 0:01:04]} 25. Bxa6 {[%clk 0:01:00]}  Qxa6 {[%clk 0:01:04]} 26. Rhf1 {[%clk 0:00:58]}  Bb4 {[%clk 0:00:55]} 27. Rf3 {[%clk 0:00:40]}  Ra7 {[%clk 0:00:42]} 28. Rd3 {[%clk 0:00:24]}  Bf8 {[%clk 0:00:24]} 29. g5 {[%clk 0:00:20]}  Be7 {[%clk 0:00:23]} 30. Rf1 {[%clk 0:00:16]}  Rac7 {[%clk 0:00:18]} 31. Rdf3 {[%clk 0:00:15]}  Bc5 {[%clk 0:00:14]} 32. Nd5 {[%clk 0:00:13]}  Nxd5 {[%clk 0:00:13]} 33. Qxd5 {[%clk 0:00:14]}  Ra7 {[%clk 0:00:08]} 34. a4 {[%clk 0:00:13]}  Rf8 {[%clk 0:00:07]} 35. Qxe5 {[%clk 0:00:13]}  f6 {[%clk 0:00:05]} 36. Qd5+ {[%clk 0:00:12]}  Kh8 {[%clk 0:00:05]} 37. Rxf6 {[%clk 0:00:11]}  Qxf1+ {[%clk 0:00:02]} 38. Rxf1+ {[%clk 0:00:11]}  Rf6 {[%clk 0:00:02]} 39. Bxf6+ {[%clk 0:00:10]}  Rg7 {[%clk 0:00:03]} 40. Bxg7# {[%clk 0:00:10]} 1-0


[Site "https://www.chess.com"]

[Event "Titled Tuesday Blitz February 07 Early 2023"]
[White "Dzhaparov, Medet"]
[Black "Wahedi, Ahmad Siar"]
[WhiteFideId "13803689"]
[BlackFideId "4651260"]
[WhiteElo "1578"]
[BlackElo "2274"]
[Result "1-0"]
[Round "02"]
[TimeControl "180+2"]
[Date "2023.02.07"]
[WhiteClock "0:00:11"]
[BlackClock "0:00:35"]

1. e4 {[%clk 0:03:00]}  e6 {[%clk 0:02:57]} 2. d4 {[%clk 0:03:00]}  d5 {[%clk 0:02:57]} 3. exd5 {[%clk 0:03:01]}  exd5 {[%clk 0:02:56]} 4. Nf3 {[%clk 0:03:02]}  Nf6 {[%clk 0:02:55]} 5. Bd3 {[%clk 0:03:02]}  Be7 {[%clk 0:02:48]} 6. O-O {[%clk 0:03:02]}  O-O {[%clk 0:02:48]} 7. Nc3 {[%clk 0:02:57]}  Bg4 {[%clk 0:02:41]} 8. h3 {[%clk 0:02:57]}  Bh5 {[%clk 0:02:40]} 9. Be2 {[%clk 0:02:55]}  Re8 {[%clk 0:02:34]} 10. Ne5 {[%clk 0:02:54]}  Bxe2 {[%clk 0:02:28]} 11. Nxe2 {[%clk 0:02:55]}  Nbd7 {[%clk 0:02:22]} 12. Bf4 {[%clk 0:02:55]}  Ne4 {[%clk 0:02:17]} 13. Ng3 {[%clk 0:02:53]}  Nd6 {[%clk 0:02:11]} 14. Re1 {[%clk 0:02:51]}  Nf8 {[%clk 0:02:05]} 15. c3 {[%clk 0:02:48]}  Ne6 {[%clk 0:02:02]} 16. Nd3 {[%clk 0:02:45]}  Nxf4 {[%clk 0:01:57]} 17. Nxf4 {[%clk 0:02:46]}  c6 {[%clk 0:01:57]} 18. Nd3 {[%clk 0:02:45]}  g6 {[%clk 0:01:48]} 19. Ne5 {[%clk 0:02:39]}  Bf6 {[%clk 0:01:48]} 20. Ng4 {[%clk 0:02:38]}  Bg7 {[%clk 0:01:48]} 21. Qd2 {[%clk 0:02:32]}  Nc4 {[%clk 0:01:45]} 22. Qc2 {[%clk 0:02:15]}  Qa5 {[%clk 0:01:27]} 23. b3 {[%clk 0:02:02]}  Nd6 {[%clk 0:01:23]} 24. a4 {[%clk 0:01:50]}  c5 {[%clk 0:01:17]} 25. Red1 {[%clk 0:01:25]}  Rac8 {[%clk 0:01:12]} 26. dxc5 {[%clk 0:00:31]}  Qxc5 {[%clk 0:01:12]} 27. Rac1 {[%clk 0:00:26]}  h5 {[%clk 0:01:11]} 28. Ne3 {[%clk 0:00:25]}  Rxe3 {[%clk 0:01:10]} 29. fxe3 {[%clk 0:00:24]}  Qxe3+ {[%clk 0:01:11]} 30. Qf2 {[%clk 0:00:25]}  Qe5 {[%clk 0:01:02]} 31. Re1 {[%clk 0:00:21]}  Ne4 {[%clk 0:01:02]} 32. Nxe4 {[%clk 0:00:20]}  dxe4 {[%clk 0:01:03]} 33. Qe3 {[%clk 0:00:21]}  f5 {[%clk 0:01:02]} 34. c4 {[%clk 0:00:20]}  b6 {[%clk 0:01:02]} 35. Rcd1 {[%clk 0:00:20]}  h4 {[%clk 0:01:00]} 36. Qd2 {[%clk 0:00:20]}  Qg3 {[%clk 0:01:00]} 37. Qd5+ {[%clk 0:00:20]}  Kh7 {[%clk 0:01:00]} 38. Rf1 {[%clk 0:00:20]}  Qxb3 {[%clk 0:00:58]} 39. Qd7 {[%clk 0:00:19]}  Rxc4 {[%clk 0:00:55]} 40. Qxa7 {[%clk 0:00:18]}  Rxa4 {[%clk 0:00:53]} 41. Qe7 {[%clk 0:00:17]}  Qe3+ {[%clk 0:00:52]} 42. Kh1 {[%clk 0:00:17]}  Qg3 {[%clk 0:00:52]} 43. Rd7 {[%clk 0:00:16]}  Kh6 {[%clk 0:00:44]} 44. Qxg7+ {[%clk 0:00:16]}  Kg5 {[%clk 0:00:45]} 45. Qe7+ {[%clk 0:00:16]}  Kh5 {[%clk 0:00:44]} 46. Qh7+ {[%clk 0:00:16]}  Kg5 {[%clk 0:00:45]} 47. Rg7 {[%clk 0:00:15]}  Qd6 {[%clk 0:00:37]} 48. Rf7 {[%clk 0:00:12]}  Ra2 {[%clk 0:00:35]} 49. R7xf5+ {[%clk 0:00:11]}  gxf5 {[%clk 0:00:35]} 50. Rxf5# {[%clk 0:00:11]} 1-0


[Site "https://www.chess.com"]

[Event "Titled Tuesday Blitz February 07 Early 2023"]
[White "Hertlein, Irena"]
[Black "Iljin, Timofey"]
[WhiteFideId "21817618"]
[BlackFideId "14110180"]
[WhiteElo "1994"]
[BlackElo "2329"]
[Result "0-1"]
[Round "02"]
[TimeControl "180+2"]
[Date "2023.02.07"]
[WhiteClock "0:00:15"]
[BlackClock "0:00:31"]

1. Nf3 {[%clk 0:03:00]}  d5 {[%clk 0:02:10]} 2. e3 {[%clk 0:02:59]}  c5 {[%clk 0:02:10]} 3. c4 {[%clk 0:02:57]}  Nf6 {[%clk 0:02:11]} 4. cxd5 {[%clk 0:02:55]}  Nxd5 {[%clk 0:02:10]} 5. Nc3 {[%clk 0:02:55]}  Nc6 {[%clk 0:02:10]} 6. Bb5 {[%clk 0:02:49]}  g6 {[%clk 0:01:43]} 7. Ne5 {[%clk 0:02:46]}  Qd6 {[%clk 0:01:41]} 8. f4 {[%clk 0:01:24]}  Bg7 {[%clk 0:01:31]} 9. Nxd5 {[%clk 0:01:24]}  Qxd5 {[%clk 0:01:30]} 10. Bc4 {[%clk 0:01:24]}  Qxg2 {[%clk 0:01:29]} 11. Bxf7+ {[%clk 0:01:21]}  Kf8 {[%clk 0:01:28]} 12. Rf1 {[%clk 0:01:08]}  Bh3 {[%clk 0:01:28]} 13. Bc4 {[%clk 0:00:45]}  Qxh2 {[%clk 0:00:56]} 14. Nxc6 {[%clk 0:00:18]}  Bxf1 {[%clk 0:00:49]} 15. Bxf1 {[%clk 0:00:17]}  Qg3+ {[%clk 0:00:46]} 16. Ke2 {[%clk 0:00:17]}  bxc6 {[%clk 0:00:47]} 17. d4 {[%clk 0:00:15]}  cxd4 {[%clk 0:00:43]} 18. exd4 {[%clk 0:00:16]}  Rd8 {[%clk 0:00:35]} 19. Be3 {[%clk 0:00:16]}  Qg4+ {[%clk 0:00:35]} 20. Ke1 {[%clk 0:00:15]}  Qh4+ {[%clk 0:00:32]} 21. Bf2 {[%clk 0:00:15]}  Qxf4 {[%clk 0:00:32]} 22. Bc4 {[%clk 0:00:15]}  Bxd4 {[%clk 0:00:30]} 23. Bxd4 {[%clk 0:00:15]}  Rxd4 {[%clk 0:00:31]} 0-1


[Site "https://www.chess.com"]